lending/lending_fUSD_20260312
["ID","MTS","AMOUNT","RATE_DAILY","PERIOD"]
[408238716,1773291038081,-500.0,0.00017528,2]
[408238718,1773291038090,-54585.45654793,0.00017529,2]
[408238720,1773291038103,-661.65279128,0.00017529,2]
[408238723,1773291038118,-530118.4293273,0.00017529,2]
[408238786,1773291039832,-15038.561556,0.00017529,2]
[408238787,1773291040104,-641.3636,0.00017519,2]
[408238788,1773291040159,-1536.09326468,0.00017519,2]
[408238792,1773291044286,-575.22927857,0.00017519,2]
[408238793,1773291044296,-2503.66893018,0.00017529,2]
[408238794,1773291044307,-4880.93184003,0.00017529,2]
[408238795,1773291044320,-1016.01777078,0.00017529,2]
[408238796,1773291044331,-344.0,0.00017529,2]
[408238797,1773291045336,-12279.45352763,0.00017529,2]
[408238798,1773291045350,-1222.0,0.00017529,2]
[408238799,1773291045392,-28181.34589998,0.00017529,2]
[408238804,1773291568805,152.78,8.5e-05,2]
[408238805,1773291569177,152.78,9.208e-05,2]
[408238806,1773291569221,152.78,9.917e-05,2]
[408238807,1773291569391,152.78,0.00010625,2]
[408238808,1773291569592,152.78,0.00011334,2]
[408238809,1773291569792,152.78,0.00012042,2]
[408238810,1773291570037,152.78,0.0001275,2]
[408238811,1773291570251,152.78,0.00013459,2]
[408238812,1773291570437,152.78,0.00014167,2]
[408238816,1773291630856,1317.9,0.00013912,2]
[408238817,1773291666448,-152.78,0.00014875,2]
[408238818,1773291666478,-152.78,0.00015584,2]
[408238819,1773291666633,-6245.78731849,0.000162,5]
[408238820,1773291669336,-10000.01,0.000162,5]
[408238821,1773291707859,-10000.01,0.000162,5]
[408238822,1773291713804,-2923.38731849,0.000162,5]
[408238823,1773291713833,-4153.23536302,0.000162,5]
[408238824,1773291757405,10000.01,9.5e-05,3]
[408238825,1773291757427,10000.01,9.5e-05,3]
[408238826,1773291757455,727335.62633319,9.5e-05,3]
[408238827,1773291786694,266.0,0.000144,2]
[408238828,1773291786982,266.0,0.000144,2]
[408238829,1773291787222,266.0,0.000144,2]
[408238830,1773291787640,5533.0,0.000128,5]
[408238831,1773291805852,-266.0,0.00015895,3]
[408238832,1773291805878,-157.64301443,0.00016007,2]
[408238833,1773291805904,-3103.6347591,0.000162,2]
[408238834,1773291805930,-600.0,0.00016246,2]
[408238835,1773291805957,-152.78,0.00016292,2]
[408238836,1773291805983,-300.0,0.00016621,2]
[408238837,1773291806154,-1645.71,0.00016622,2]
[408238838,1773291806180,-218.97,0.00016622,2]
[408238839,1773291806206,-2500.0,0.0001669,2]
[408238840,1773291806231,-237.01942635,0.0001669,2]
[408238841,1773291806325,-796.6111473,0.0001669,2]
[408238842,1773291806352,-214.95038775,0.0001669,2]
[408238843,1773291806378,-507.0,0.00017,2]
[408238844,1773291806407,-152.78,0.00017,2]
[408238845,1773291808646,-3092.929887,0.00016606,2]
[408238846,1773291808848,-2107.97275614,0.00017,2]
[408238847,1773291812081,-10000.01,0.00017,2]
[408238848,1773291812241,-10000.01,0.00017,2]
[408238849,1773291812700,-2108.01275614,0.00017,2]
[408238850,1773291812724,-5783.98448772,0.00017,2]
[408238893,1773292231476,-166.66,0.00015864,2]
[408238896,1773292231486,-283.0,0.00015864,2]
[408238899,1773292231496,-166.66,0.00016198,2]
[408238901,1773292231506,-166.66,0.00016532,2]
[408238903,1773292231515,-155.49,0.00016595,2]
[408238905,1773292231524,-166.66,0.00016866,2]
[408238906,1773292231533,-507.0,0.00017,2]
[408238907,1773292231543,-238.0,0.00017,3]
[408238908,1773292231553,-152.0,0.00017,3]
[408238909,1773292231563,-3252.59450498,0.00017,2]
[408238910,1773292231574,-223.74549502,0.00017,2]
[408238911,1773292231583,-165.89077476,0.000171,2]
[408238912,1773292231592,-166.66,0.000172,2]
[408238913,1773292231601,-1000.0,0.0001726,2]
[408238914,1773292231610,-449.0,0.00017332,2]
[408238915,1773292231619,-181.83,0.00017333,2]
[408238916,1773292231628,-1200.0,0.00017427,2]
[408238917,1773292231638,-90.83446384,0.00017427,2]
[408238918,1773292231651,-209.16553616,0.00017427,2]
[408238919,1773292231660,-2468.66606323,0.00017429,2]
[408238920,1773292231669,-274.35246593,0.0001745,2]
[408238921,1773292231681,-600.0,0.0001745,2]
[408238922,1773292231693,-2500.0,0.0001745,2]
[408238923,1773292231703,-250.0,0.0001745,2]
[408238925,1773292231713,-252.0,0.0001745,2]
[408238927,1773292231722,-300.0,0.0001745,2]
[408238929,1773292231731,-500.0,0.00017452,2]
[408238931,1773292231741,-1645.71,0.00017453,2]
[408238932,1773292231750,-210.859743,0.00017509,2]
[408238933,1773292231759,-550.0,0.00017517,2]
[408238934,1773292231769,-500.0,0.00017518,2]
[408238935,1773292231778,-200.0,0.00017518,2]
[408238936,1773292231786,-500.0,0.00017518,2]
[408238937,1773292231795,-500.0,0.00017518,2]
[408238938,1773292231804,-151.0,0.00017518,2]
[408238939,1773292231815,-266.01283076,0.00017518,2]
[408238940,1773292231825,-151.0,0.00017518,2]
[408238941,1773292231833,-154.4363437,0.00017518,2]
[408238942,1773292231842,-151.0,0.00017518,2]
[408238943,1773292231852,-151.0,0.00017518,2]
[408238944,1773292231861,-151.0,0.00017518,2]
[408238946,1773292231870,-151.0,0.00017518,2]
[408238947,1773292231879,-151.0,0.00017518,2]
[408238949,1773292231888,-182.32378179,0.00017518,2]
[408238950,1773292231897,-1000.0,0.00017528,2]
[408238951,1773292231906,-2000.5257125,0.00017529,2]
[408238952,1773292231927,-1394.35927846,0.00017529,2]
[408238953,1773292231938,-16988.12649553,0.00017529,2]
[408238954,1773292231949,-57294.40682245,0.00017529,2]
[408238955,1773292231960,-11461.90804165,0.00017529,2]
[408238956,1773292231978,-2007.21025571,0.00017529,2]
[408238957,1773292231996,-938.55,0.00017529,2]
[408238958,1773292232884,155.17,0.0002,120]
[408238971,1773292237760,-605.91046908,0.00017529,2]
[408238972,1773292237773,-23523.39586432,0.00017529,2]
[408238973,1773292237782,-4782.5016057,0.00017529,2]
[408238974,1773292237790,-3729.4168068,0.00017529,2]
[408238975,1773292237798,-7535.6978692,0.00017529,2]
[408238976,1773292237806,-200.0,0.00017529,2]
[408238977,1773292237814,-10197.22823017,0.00017529,2]
[408238978,1773292237823,-500.03289567,0.00017529,2]
[408238979,1773292237837,-417.0,0.00017529,2]
[408238980,1773292237847,-1366.98887416,0.00017529,2]
[408238981,1773292237855,-200.0,0.00017529,2]
[408238982,1773292237863,-200.0,0.00017529,2]
[408238983,1773292237875,-188.46356256,0.00017529,2]
[408238984,1773292237884,-166.66,0.00017534,2]
[408238985,1773292237894,-1000.0,0.00017534,2]
[408238986,1773292237903,-218.97,0.00017545,2]
[408238987,1773292237912,-170.34,0.00017549,2]
[408238988,1773292237921,-500.0,0.00017573,2]
[408238989,1773292237931,-503.26256351,0.00017573,2]
[408238990,1773292237940,-501.65818197,0.00017573,2]
[408238991,1773292237949,-316.27144279,0.00017573,2]
[408238992,1773292237957,-286.42096768,0.00017573,2]
[408238993,1773292237967,-500.87363076,0.00017573,2]
[408238994,1773292237976,-200.0,0.00017688,2]
[408238995,1773292237985,-200.0,0.00017704,2]
[408238996,1773292237994,-200.0,0.00017704,2]
[408238997,1773292238002,-1186.84457061,0.00017722,2]
[408238998,1773292238014,-813.15542939,0.00017722,2]
[408238999,1773292238022,-180.18609402,0.00017727,2]
[408239000,1773292238033,-319.81390598,0.00017727,2]
[408239001,1773292238042,-220.12160404,0.0001773,2]
[408239003,1773292239766,-4742.35442359,0.0001773,2]
[408239004,1773292239776,-151.0,0.0001773,2]
[408239005,1773292239784,-57.34737152,0.00017735,2]
[408239007,1773292239928,-1942.65262848,0.00017735,2]
[408239008,1773292239937,-502.78663572,0.00017773,2]
[408239009,1773292239946,-3090.45,0.00017781,2]
[408239010,1773292240170,-216.52323508,0.000178,2]
[408239011,1773292240183,-1000.0,0.00017808,2]
[408239012,1773292240192,-289.0,0.0001782,14]
[408239013,1773292240202,-243.0,0.0001782,14]
[408239014,1773292240211,-259.0,0.0001782,14]
[408239015,1773292240220,-200.0,0.0001783,2]
[408239016,1773292240230,-200.0,0.0001783,2]
[408239017,1773292240239,-200.0,0.00017881,2]
[408239018,1773292240250,-200.0,0.00017881,2]
[408239019,1773292240259,-786.273468,0.000179,2]
[408239020,1773292240268,-786.27346798,0.000179,2]
[408239021,1773292240277,-786.27346798,0.000179,2]
[408239022,1773292240286,-786.27346798,0.000179,2]
[408239023,1773292240297,-225.11,0.00017906,2]
[408239024,1773292240306,-200.0,0.00017932,2]
[408239025,1773292240315,-500.0,0.00017998,2]
[408239027,1773292240324,-200.0,0.00018,14]
[408239028,1773292240333,-500.0,0.00018,2]
[408239029,1773292240343,-500.0,0.00018,2]
[408239030,1773292240353,-250.0,0.00018,2]
[408239031,1773292240362,-603.59784427,0.00018,2]
[408239032,1773292240372,-250.0,0.00018,2]
[408239033,1773292240381,-259.58223353,0.00018,2]
[408239034,1773292240390,-278.60287259,0.00018,2]
[408239035,1773292240401,-1500.0,0.00018,2]
[408239036,1773292240410,-1500.0,0.00018,2]
[408239037,1773292240419,-1500.0,0.00018,2]
[408239038,1773292240428,-1500.0,0.00018,2]
[408239039,1773292240437,-719.09363346,0.00018,2]
[408239040,1773292240446,-500.0,0.00018,2]
[408239041,1773292240455,-500.0,0.00018,2]
[408239042,1773292240464,-500.0,0.00018,2]
[408239043,1773292240474,-500.0,0.00018,2]
[408239044,1773292240483,-500.0,0.00018,2]
[408239045,1773292240491,-500.0,0.00018,2]
[408239046,1773292240500,-250.0,0.00018,2]
[408239047,1773292240509,-500.0,0.00018,2]
[408239048,1773292240518,-250.0,0.00018,2]
[408239049,1773292240527,-500.0,0.00018,2]
[408239050,1773292240537,-161.49585947,0.00018,2]
[408239051,1773292240546,-500.0,0.00018,2]
[408239052,1773292240555,-500.0,0.00018,2]
[408239053,1773292240564,-500.0,0.00018,2]
[408239054,1773292240573,-500.0,0.00018,2]
[408239055,1773292240582,-174.61919141,0.00018,2]
[408239056,1773292240591,-202.70106521,0.00018,2]
[408239057,1773292240600,-500.0,0.00018,2]
[408239058,1773292240609,-480.68114497,0.00018,2]
[408239059,1773292240619,-200.0,0.00018008,2]
[408239060,1773292240628,-200.0,0.00018008,2]
[408239061,1773292240637,-673.15,0.00018009,2]
[408239062,1773292240647,-152.0,0.00018032,3]
[408239063,1773292240656,-200.0,0.0001806,2]
[408239064,1773292240665,-200.0,0.0001806,2]
[408239065,1773292240674,-200.0,0.00018066,2]
[408239066,1773292240693,-1000.0,0.00018082,2]
[408239067,1773292240703,-946.52,0.00018137,2]
[408239068,1773292240712,-2117.49,0.00018173,2]
[408239069,1773292240721,-200.0,0.00018188,2]
[408239070,1773292240731,-200.0,0.00018188,2]
[408239071,1773292240740,-1226.63,0.00018236,2]
[408239072,1773292240749,-200.0,0.00018241,2]
[408239073,1773292240759,-200.0,0.00018241,2]
[408239074,1773292240767,-452.0,0.00018282,2]
[408239075,1773292240777,-1645.71,0.00018284,2]
[408239076,1773292240786,-1000.0,0.00018356,2]
[408239077,1773292240795,-200.0,0.0001837,2]
[408239078,1773292240804,-200.0,0.0001837,2]
[408239079,1773292240813,-168.0,0.00018388,2]
[408239080,1773292240823,-225.11,0.0001839,2]
[408239081,1773292240832,-218.97,0.00018468,2]
[408239082,1773292240842,-181.08010149,0.00018548,2]
[408239083,1773292240851,-200.0,0.00018554,2]
[408239084,1773292240860,-200.0,0.00018554,2]
[408239085,1773292240870,-452.0,0.00018559,2]
[408239086,1773292240881,-600.0,0.00018604,2]
[408239087,1773292240890,-2117.49,0.00018606,2]
[408239088,1773292240900,-168.0,0.00018609,2]
[408239089,1773292240909,-200.0,0.00018614,2]
[408239090,1773292240918,-1000.0,0.0001863,2]
[408239091,1773292240927,-500.0,0.00018633,2]
[408239092,1773292240936,-168.0,0.00018694,2]
[408239093,1773292240946,-238.0,0.00018737,3]
[408239094,1773292240955,-452.0,0.00018752,2]
[408239095,1773292240964,-452.0,0.00018814,2]
[408239096,1773292240973,-168.0,0.00018846,2]
[408239097,1773292240982,-168.0,0.00018856,2]
[408239098,1773292240991,-500.0,0.00018875,2]
[408239099,1773292241000,-500.0,0.00018875,2]
[408239100,1773292241009,-168.0,0.00018875,2]
[408239101,1773292241018,-1000.0,0.00018904,2]
[408239102,1773292241027,-168.0,0.00018934,2]
[408239103,1773292241037,-452.0,0.0001897,2]
[408239104,1773292241045,-744.0,0.0001899,2]
[408239105,1773292241058,-170.34,0.00018997,2]
[408239106,1773292241067,-420.0,0.00019026,2]
[408239107,1773292241076,-2117.49,0.00019038,2]
[408239108,1773292241085,-168.0,0.00019081,2]
[408239109,1773292241094,-248.3007071,0.00019096,2]
[408239110,1773292241104,-2000.0,0.000191,2]
[408239111,1773292241113,-5306.27,0.000191,2]
[408239112,1773292241122,-168.0,0.00019101,2]
[408239113,1773292241131,-1645.71,0.00019115,2]
[408239114,1773292241140,-1680.0,0.0001912,2]
[408239115,1773292241150,-200.0,0.00019162,2]
[408239116,1773292241159,-500.0,0.00019173,2]
[408239117,1773292241168,-500.7237999,0.00019173,2]
[408239118,1773292241182,-151.0,0.00019174,2]
[408239119,1773292241191,-3507.0,0.00019174,2]
[408239120,1773292241200,-4959.0,0.00019177,2]
[408239121,1773292241209,-5725.0,0.00019178,2]
[408239122,1773292241219,-1000.0,0.00019178,2]
[408239123,1773292241229,-296.50947694,0.00019181,2]
[408239124,1773292241238,-1000.0,0.000192,2]
[408239125,1773292241248,-2000.0,0.000192,2]
[408239126,1773292241257,-202.0,0.00019244,2]
[408239127,1773292241266,-2070.0,0.000193,2]
[408239128,1773292241275,-202.0,0.00019309,2]
[408239129,1773292241284,-150.0,0.00019341,2]
[408239130,1773292241294,-1280.0,0.00019341,2]
[408239131,1773292241303,-500.0,0.00019369,2]
[408239132,1773292241312,-673.15,0.00019379,2]
[408239133,1773292241321,-218.97,0.00019392,2]
[408239134,1773292241330,-1000.0,0.00019452,2]
[408239135,1773292241339,-1213.0,0.00019483,2]
[408239136,1773292241349,-922.0,0.00019483,2]
[408239137,1773292241358,-2462.0,0.00019483,2]
[408239138,1773292241367,-5995.0,0.00019483,2]
[408239139,1773292241376,-3751.0,0.00019483,2]
[408239140,1773292241386,-152.0,0.00019516,4]
[408239141,1773292241395,-2000.0,0.000196,2]
[408239142,1773292241404,-202.0,0.00019699,2]
[408239143,1773292241414,-866.15144424,0.000197,2]
[408239144,1773292241423,-1000.0,0.00019721,2]
[408239145,1773292241432,-500.0,0.00019726,2]
[408239146,1773292241441,-150.0,0.00019726,2]
[408239147,1773292241451,-500.0,0.00019726,2]
[408239148,1773292241460,-150.0,0.00019726,2]
[408239149,1773292241470,-500.0,0.00019726,2]
[408239150,1773292241479,-500.0,0.00019726,2]
[408239151,1773292241488,-153.17335882,0.00019726,2]
[408239152,1773292241498,-500.0,0.00019726,2]
[408239153,1773292241508,-150.0,0.00019726,2]
[408239154,1773292241517,-152.29087949,0.00019726,2]
[408239155,1773292241526,-500.0,0.00019726,2]
[408239156,1773292241535,-150.0,0.00019726,2]
[408239157,1773292241544,-500.0,0.00019726,2]
[408239158,1773292241554,-150.0,0.00019726,2]
[408239159,1773292241563,-500.0,0.00019726,2]
[408239160,1773292241574,-150.0,0.00019726,2]
[408239161,1773292241583,-150.0,0.00019726,2]
[408239162,1773292241593,-150.0,0.00019726,2]
[408239163,1773292241602,-150.0,0.00019726,2]
[408239164,1773292241612,-150.0,0.00019726,2]
[408239165,1773292241621,-500.0,0.00019726,2]
[408239166,1773292241631,-150.0,0.00019726,2]
[408239167,1773292241640,-150.21365823,0.00019726,2]
[408239168,1773292241650,-500.0,0.00019726,2]
[408239169,1773292241659,-500.0,0.00019726,2]
[408239170,1773292241668,-150.0,0.00019726,2]
[408239171,1773292241677,-500.0,0.00019726,2]
[408239172,1773292241686,-150.0,0.00019726,2]
[408239173,1773292241695,-150.0,0.00019726,2]
[408239174,1773292241705,-500.0,0.00019726,2]
[408239175,1773292241714,-500.0,0.00019726,2]
[408239176,1773292241723,-150.0,0.00019726,2]
[408239177,1773292241732,-1000.0,0.00019726,2]
[408239178,1773292241741,-25930.9361082,0.00019751,2]
[408239179,1773292241750,-832.1453693,0.00019751,2]
[408239180,1773292241759,-1681.4414723,0.00019751,2]
[408239181,1773292241768,-1067.1203491,0.00019753,2]
[408239182,1773292241777,-500.0,0.00019773,2]
[408239183,1773292241786,-150.0,0.00019781,2]
[408239184,1773292241795,-500.0,0.00019781,2]
[408239185,1773292241804,-500.0,0.00019781,2]
[408239186,1773292241813,-150.0,0.00019781,2]
[408239187,1773292241822,-500.0,0.00019781,2]
[408239188,1773292241831,-500.0,0.00019781,2]
[408239189,1773292241840,-500.0,0.00019781,2]
[408239190,1773292241849,-500.0,0.00019781,2]
[408239191,1773292241858,-150.0,0.00019781,2]
[408239192,1773292241868,-500.0,0.00019781,2]
[408239193,1773292241876,-150.0,0.00019781,2]
[408239194,1773292241886,-500.0,0.00019781,2]
[408239195,1773292241895,-150.0,0.00019781,2]
[408239196,1773292241904,-150.0,0.00019781,2]
[408239197,1773292241913,-232.79888752,0.00019781,2]
[408239198,1773292241922,-150.0,0.00019781,2]
[408239199,1773292241932,-151.13618742,0.00019781,2]
[408239200,1773292241940,-500.0,0.00019781,2]
[408239201,1773292241950,-150.0,0.00019781,2]
[408239202,1773292241959,-500.0,0.00019781,2]
[408239203,1773292241969,-500.0,0.00019781,2]
[408239204,1773292241978,-150.0,0.00019781,2]
[408239205,1773292241987,-500.0,0.00019781,2]
[408239206,1773292241996,-500.0,0.00019781,2]
[408239207,1773292242005,-500.0,0.00019781,2]
[408239208,1773292242014,-150.0,0.00019781,2]
[408239209,1773292242023,-202.0,0.00019781,2]
[408239210,1773292242032,-150.0,0.00019783,2]
[408239211,1773292242040,-150.139,0.00019783,2]
[408239212,1773292242049,-192.957,0.00019783,2]
[408239213,1773292242058,-165.566,0.00019783,2]
[408239214,1773292242067,-250.0,0.00019783,2]
[408239215,1773292242076,-214.263,0.00019783,2]
[408239216,1773292242086,-237.585,0.00019783,2]
[408239217,1773292242095,-178.0,0.00019783,2]
[408239218,1773292242105,-1043.0,0.00019783,2]
[408239219,1773292242113,-1343.0,0.00019783,2]
[408239220,1773292242122,-2003.56694,0.000198,2]
[408239221,1773292242132,-2003.56694,0.000198,2]
[408239222,1773292242141,-2003.56693,0.000198,2]
[408239223,1773292242150,-1175.00132709,0.000198,2]
[408239224,1773292242192,-828.56561291,0.000198,2]
[408239225,1773292242201,-500.0,0.00019836,2]
[408239226,1773292242210,-203.11209841,0.00019836,2]
[408239227,1773292242219,-500.0,0.00019836,2]
[408239228,1773292242228,-150.0,0.00019836,2]
[408239229,1773292242237,-500.0,0.00019836,2]
[408239230,1773292242246,-500.0,0.00019836,2]
[408239231,1773292242256,-500.0,0.00019836,2]
[408239232,1773292242265,-500.0,0.00019836,2]
[408239233,1773292242275,-150.0,0.00019836,2]
[408239234,1773292242284,-500.0,0.00019836,2]
[408239235,1773292242293,-500.0,0.00019836,2]
[408239236,1773292242302,-150.0,0.00019836,2]
[408239237,1773292242311,-150.0,0.00019836,2]
[408239238,1773292242320,-150.0,0.00019836,2]
[408239239,1773292242329,-204.61846768,0.00019836,2]
[408239240,1773292242338,-237.75178681,0.00019836,2]
[408239241,1773292242347,-500.0,0.00019836,2]
[408239242,1773292242356,-500.0,0.00019836,2]
[408239243,1773292242365,-150.0,0.00019836,2]
[408239244,1773292242375,-150.0,0.00019836,2]
[408239246,1773292242384,-500.0,0.00019836,2]
[408239248,1773292242393,-500.0,0.00019836,2]
[408239250,1773292242402,-200.0,0.00019836,2]
[408239251,1773292242411,-181.37486905,0.00019839,2]
[408239252,1773292242421,-500.0,0.00019839,2]
[408239253,1773292242430,-500.0,0.00019839,2]
[408239254,1773292242439,-227.19702841,0.00019839,2]
[408239255,1773292242448,-500.0,0.00019839,2]
[408239256,1773292242458,-500.0,0.00019839,2]
[408239257,1773292242467,-386.95648297,0.00019839,2]
[408239258,1773292242476,-239.75578029,0.00019839,2]
[408239259,1773292242486,-167.291,0.00019844,2]
[408239261,1773292242496,-2417.989,0.00019844,2]
[408239264,1773292242504,-202.0,0.00019876,2]
[408239265,1773292242513,-6001.0,0.00019883,2]
[408239266,1773292242522,-202.0,0.00019883,2]
[408239267,1773292242531,-500.0,0.0001989,2]
[408239268,1773292242540,-500.0,0.0001989,2]
[408239269,1773292242549,-201.9785608,0.0001989,2]
[408239270,1773292242559,-500.0,0.0001989,2]
[408239271,1773292242568,-500.0,0.0001989,2]
[408239272,1773292242578,-150.0,0.0001989,2]
[408239273,1773292242586,-317.21851997,0.0001989,2]
[408239274,1773292242596,-150.0,0.0001989,2]
[408239275,1773292242604,-500.0,0.0001989,2]
[408239276,1773292242613,-500.0,0.0001989,2]
[408239277,1773292242622,-165.87618342,0.0001989,2]
[408239278,1773292242631,-150.0,0.0001989,2]
[408239279,1773292242641,-150.0,0.0001989,2]
[408239280,1773292242650,-500.0,0.0001989,2]
[408239281,1773292242659,-500.0,0.0001989,2]
[408239282,1773292242668,-150.0,0.0001989,2]
[408239283,1773292242677,-500.0,0.0001989,2]
[408239284,1773292242686,-500.0,0.0001989,2]
[408239285,1773292242695,-296.6762,0.00019899,2]
[408239286,1773292242704,-5000.0,0.00019899,2]
[408239287,1773292242713,-445.5335834,0.000199,2]
[408239288,1773292242722,-159.46975512,0.000199,2]
[408239289,1773292242732,-172.12250135,0.000199,2]
[408239290,1773292242741,-7470.27231414,0.000199,2]
[408239291,1773292242750,-406.48727314,0.000199,2]
[408239292,1773292242759,-1129.54860854,0.000199,2]
[408239293,1773292242769,-1766.95051976,0.000199,2]
[408239294,1773292242778,-181.83,0.00019919,2]
[408239295,1773292242787,-2000.0,0.00019937,2]
[408239296,1773292242796,-500.0,0.00019945,2]
[408239297,1773292242806,-500.0,0.00019945,2]
[408239298,1773292242815,-500.0,0.00019945,2]
[408239299,1773292242824,-154.2053263,0.00019945,2]
[408239300,1773292242834,-500.0,0.00019945,2]
[408239301,1773292242843,-500.0,0.00019945,2]
[408239302,1773292242852,-250.0,0.00019945,2]
[408239303,1773292242862,-176.29568284,0.00019945,2]
[408239304,1773292242871,-500.0,0.00019945,2]
[408239305,1773292242880,-150.0,0.00019945,2]
[408239306,1773292242890,-500.0,0.00019945,2]
[408239307,1773292242901,-500.0,0.00019945,2]
[408239308,1773292242910,-1645.71,0.00019946,2]
[408239309,1773292242919,-1028.05373431,0.00019958,2]
[408239310,1773292242928,-439.0,0.00019973,2]
[408239311,1773292242937,-204.0,0.00019973,2]
[408239312,1773292242946,-773.56148329,0.0001999,2]
[408239313,1773292242955,-773.56148329,0.0001999,2]
[408239314,1773292242964,-151.0,0.00019997,2]
[408239315,1773292242974,-1516.0,0.00019999,2]
[408239316,1773292242984,-160.45403572,0.00019999,2]
[408239317,1773292242993,-152.0,0.00019999,2]
[408239318,1773292243002,-160.0,0.00019999,2]
[408239319,1773292243011,-150.0,0.00019999,2]
[408239320,1773292243019,-152.35830507,0.00019999,2]
[408239321,1773292243029,-500.0,0.00019999,2]
[408239322,1773292243039,-500.0,0.00019999,2]
[408239323,1773292243048,-500.0,0.00019999,2]
[408239324,1773292243057,-500.0,0.00019999,2]
[408239325,1773292243067,-500.0,0.00019999,2]
[408239326,1773292243076,-500.0,0.00019999,2]
[408239327,1773292243085,-500.0,0.00019999,2]
[408239328,1773292243095,-500.0,0.00019999,2]
[408239329,1773292243104,-500.0,0.00019999,2]
[408239330,1773292243113,-500.0,0.00019999,2]
[408239331,1773292243122,-500.0,0.00019999,2]
[408239332,1773292243132,-500.0,0.00019999,2]
[408239333,1773292243141,-500.0,0.00019999,2]
[408239334,1773292243151,-500.0,0.00019999,2]
[408239335,1773292243161,-500.0,0.00019999,2]
[408239336,1773292243170,-500.0,0.00019999,2]
[408239337,1773292243182,-500.0,0.00019999,2]
[408239338,1773292243192,-500.0,0.00019999,2]
[408239339,1773292243201,-500.0,0.00019999,2]
[408239340,1773292243211,-500.0,0.00019999,2]
[408239341,1773292243222,-640.94031555,0.00019999,2]
[408239342,1773292243231,-365.6420169,0.00019999,2]
[408239343,1773292243240,-238.1430461,0.00019999,2]
[408239344,1773292243250,-500.0,0.00019999,2]
[408239345,1773292243259,-500.0,0.00019999,2]
[408239346,1773292243268,-189.89191999,0.00019999,2]
[408239347,1773292243277,-500.0,0.0002,2]
[408239348,1773292243287,-323.0,0.0002,2]
[408239349,1773292243296,-500.0,0.0002,2]
[408239350,1773292243305,-500.0,0.0002,2]
[408239351,1773292243314,-500.0,0.0002,2]
[408239352,1773292243324,-2024.08475153,0.0002,2]
[408239353,1773292243336,-857.81402166,0.0002,2]
[408239354,1773292243347,-395.70849075,0.0002,2]
[408239355,1773292243359,-2090.40897658,0.0002,2]
[408239356,1773292243383,-3531.35,0.0002,2]
[408239357,1773292243406,-395.472,0.0002,2]
[408239358,1773292243417,-1134.17202255,0.0002,2]
[408239359,1773292243429,-373.5644,0.0002,2]
[408239360,1773292243440,-4926.23470969,0.0002,2]
[408239361,1773292243451,-18023.84674094,0.0002,2]
[408239362,1773292243462,-18053.12842464,0.0002,2]
[408239378,1773292243842,-151.0,0.00017881,2]
[408239380,1773292243851,-156021.60937506,0.0002,2]
[408239381,1773292243863,-2112.68772881,0.0002,2]
[408239382,1773292244037,-6023.04433623,0.0002,2]
[408239383,1773292244051,-5642.70196642,0.0002,2]